bitfinex-derivatives/quotes_BTCF0:USTF0_20250318
["timestamp","ask_amount","ask_price","bid_price","bid_amount"]
[1742306864222,0.7656,81657.0,81652.0,0.00018372]
[1742306864223,0.1224792,81653.0,81652.0,0.00018372]
[1742306864519,0.3608,81653.0,81636.0,0.89032]
[1742306864723,0.3608,81638.0,81636.0,0.89032]
[1742306864921,0.14476,81643.0,81642.0,0.1224957]
[1742306865113,0.14476,81643.0,81636.0,0.89032]
[1742306865427,0.3608,81638.0,81636.0,0.89032]
[1742306865725,0.14476,81643.0,81639.0,0.1224989]
[1742306865927,0.14476,81643.0,81636.0,0.89032]
[1742306865928,0.1224886,81647.0,81636.0,0.89032]
[1742306866108,0.3608,81645.0,81636.0,0.89032]
[1742306866314,0.3608,81645.0,81641.0,0.1224961]
[1742306866624,0.00018333,81648.0,81641.0,0.1224961]
[1742306866823,0.00018333,81648.0,81636.0,0.89032]
[1742306867024,0.1225032,81637.0,81636.0,0.89032]
[1742306867222,0.2672232,81637.0,81636.0,0.89032]
[1742306867526,0.36098333,81648.0,81636.0,0.89032]
[1742306867527,0.4995,81638.0,81637.0,0.1225032]
[1742306867715,0.1225032,81637.0,81636.0,0.89032]
[1742306867912,0.4995,81638.0,81636.0,0.89032]
[1742306868218,0.241,81637.0,81636.0,0.84032]
[1742306868527,0.241,81637.0,81636.0,0.79112]
[1742306868924,0.1225107,81632.0,81601.0,0.3608]
[1742306869125,0.7745,81632.0,81596.0,0.3608]
[1742306869317,0.1225494,81607.0,81596.0,0.3608]
[1742306869523,0.1225529,81604.0,81596.0,0.3608]
[1742306869719,0.244,81606.0,81596.0,0.3608]
[1742306870122,0.244,81606.0,81595.0,0.89092]
[1742306870123,0.3608,81602.0,81595.0,0.00064]
[1742306870318,0.3608,81602.0,81580.0,0.2467]
[1742306870319,0.14472,81601.0,81593.0,0.00018372]
[1742306870518,0.1225678,81594.0,81593.0,0.00018372]
[1742306871319,0.2672878,81594.0,81593.0,0.00018372]
[1742306871528,0.14472,81594.0,81593.0,0.00018372]
[1742306871826,0.2672878,81594.0,81593.0,0.00018372]
[1742306872017,0.3608,81595.0,81593.0,0.00018372]
[1742306872220,0.2653,81594.0,81593.0,0.00018372]
[1742306872627,0.3878678,81594.0,81593.0,0.00018372]
[1742306873328,0.3898678,81594.0,81593.0,0.00018372]
[1742306873527,0.061285,81593.0,81578.0,0.89032]
[1742306873731,0.2673,81594.0,81580.0,0.1225884]
[1742306873931,0.2673,81594.0,81588.0,0.1225757]
[1742306874126,0.2673,81594.0,81583.0,0.1225833]
[1742306874320,0.14476,81593.0,81586.0,0.1225785]
[1742306874524,0.3608,81587.0,81579.0,0.1225894]
[1742306874726,0.2653,81586.0,81581.0,0.00018384]
[1742306874932,0.1225858,81582.0,81581.0,0.00018384]
[1742306875329,0.2653,81586.0,81581.0,0.00018384]
[1742306875520,0.1225853,81583.0,81581.0,0.00018384]
[1742306875831,0.248,81582.0,81581.0,0.00018384]
[1742306876334,0.5153458,81582.0,81581.0,0.00018384]
[1742306877037,0.39276,81582.0,81581.0,0.00018384]
[1742306877530,0.5153458,81582.0,81581.0,0.00118384]
[1742306877928,0.0612941,81581.0,81574.0,0.1225967]
[1742306878231,0.3608,81579.0,81576.0,0.1225943]
[1742306878426,0.2429,81586.0,81577.0,0.3608]
[1742306878627,0.00018384,81591.0,81590.0,0.1225738]
[1742306878927,0.00018384,81591.0,81588.0,0.0612883]
[1742306879433,0.00018384,81591.0,81588.0,0.1225767]
[1742306879434,0.00935853,81591.0,81588.0,0.1225767]
[1742306879734,0.00018384,81591.0,81590.0,0.1225738]
[1742306879936,0.3608,81596.0,81595.0,0.1225663]
[1742306880131,0.2604,81604.0,81602.0,0.122555]
[1742306880339,0.0612715,81611.0,81603.0,0.2411]
[1742306880526,0.2457,81619.0,81572.0,0.3608]
[1742306880527,0.40516,81606.0,81572.0,0.3608]
[1742306880838,0.41433469,81606.0,81589.0,0.2627]
[1742306881034,0.26058384,81606.0,81590.0,0.50556]
[1742306881231,0.24168384,81606.0,81600.0,0.0612794]
[1742306881434,0.24168384,81606.0,81603.0,0.1225532]
[1742306881435,0.2612,81605.0,81603.0,0.1225532]
[1742306881734,0.2612,81605.0,81604.0,0.3881528]
[1742306881925,0.00018384,81606.0,81605.0,0.1225513]
[1742306882125,0.00018384,81606.0,81605.0,0.5103]
[1742306882324,0.00018384,81606.0,81605.0,0.2656]
[1742306882631,0.00018384,81606.0,81590.0,0.3608]
[1742306882632,0.76694384,81606.0,81588.0,0.14476]
[1742306882834,0.0612765,81604.0,81590.0,0.0612865]
[1742306883022,0.2612,81603.0,81591.0,0.2447]
[1742306883228,0.0612857,81592.0,81589.0,0.2656]
[1742306883441,0.2612,81591.0,81589.0,0.2656]
[1742306884122,0.2612,81591.0,81590.0,0.1225738]
[1742306884924,0.2612,81591.0,81590.0,0.3712738]
[1742306885436,0.2612,81591.0,81587.0,0.89136]
[1742306885632,0.2612,81591.0,81590.0,0.1225738]
[1742306885840,0.2632,81591.0,81590.0,0.0725738]
[1742306886229,0.2632,81591.0,81590.0,0.3712738]
[1742306886824,0.14476,81617.0,81590.0,0.3712738]
[1742306887028,0.2655,81605.0,81590.0,0.39346]
[1742306887334,0.2655,81605.0,81604.0,0.1225528]
[1742306887535,0.1225558,81602.0,81597.0,0.3608]
[1742306887727,0.2565,81601.0,81597.0,0.3608]
[1742306888040,0.14476,81607.0,81603.0,0.0612767]
[1742306888332,0.00018384,81606.0,81605.0,0.4833513]
[1742306888535,0.00018384,81606.0,81605.0,0.3849513]
[1742306888736,0.00018384,81606.0,81605.0,0.2624]
[1742306889126,0.00018384,81606.0,81605.0,0.3849513]
[1742306889729,0.3608,81620.0,81611.0,0.0612706]
[1742306889925,0.3608,81620.0,81619.0,0.1225302]
[1742306890341,0.3608,81620.0,81619.0,0.6296302]
[1742306891140,0.6280487,81620.0,81619.0,0.2553]
[1742306891335,0.1225323,81618.0,81612.0,1.0139393]
[1742306891638,0.50552,81620.0,81619.0,0.1225302]
[1742306891846,0.50552,81627.0,81622.0,0.1225253]
[1742306892141,0.00018384,81628.0,81627.0,0.1225182]
[1742306892336,0.00018384,81628.0,81627.0,0.3778182]
[1742306892540,0.00018384,81628.0,81627.0,0.6296182]
[1742306893047,0.40342,81642.0,81641.0,0.1224972]
[1742306893235,0.2587,81642.0,81635.0,0.0612531]
[1742306893429,0.0612493,81640.0,81636.0,0.2466]
[1742306893741,0.1225032,81637.0,81636.0,0.2466]
[1742306893938,0.2558,81639.0,81636.0,0.2466]
[1742306894141,0.2558,81639.0,81637.0,0.2574]
[1742306894335,0.3608,81638.0,81637.0,0.3299032]
[1742306894541,0.3608,81638.0,81637.0,0.1582]
[1742306894743,0.3608,81638.0,81635.0,0.1225049]
[1742306894936,0.3608,81638.0,81377.0,2.91811223]
[1742306894937,0.2558,81637.0,81626.0,0.1225183]
[1742306895244,0.1225053,81636.0,81630.0,0.1225126]
[1742306895446,0.2558,81637.0,81629.0,0.0612576]
[1742306895637,0.2558,81637.0,81634.0,0.0612538]
[1742306895840,0.3608,81636.0,81633.0,0.1225091]
[1742306896042,0.3608,81636.0,81633.0,0.1225089]
[1742306896245,0.1245021,81638.0,81637.0,0.1225032]
[1742306896246,0.002,81638.0,81637.0,0.1225032]
[1742306896444,0.002,81638.0,81636.0,0.1225047]
[1742306896643,0.002,81637.0,81631.0,0.0612558]
[1742306896947,0.002,81637.0,81636.0,0.1225047]
[1742306897733,0.002,81637.0,81636.0,0.7342047]
[1742306897938,0.00018311,81645.0,81644.0,0.1224927]
[1742306898844,0.00018311,81645.0,81643.0,0.2509]
[1742306899045,0.00018311,81645.0,81644.0,0.1224927]
[1742306899236,0.00018311,81645.0,81637.0,1.1583026]
[1742306899433,0.24558311,81645.0,81644.0,0.1224927]
[1742306899632,0.00018311,81645.0,81644.0,0.1224927]
[1742306900045,0.3608,81653.0,81652.0,0.1224807]
[1742306900548,0.11364194,81659.0,81650.0,0.0612411]
[1742306900549,0.11364194,81659.0,81658.0,0.1224717]
[1742306901633,0.1224822,81651.0,81650.0,0.00018373]
[1742306902234,0.36188,81653.0,81650.0,0.00018373]
[1742306902443,0.1224822,81651.0,81650.0,0.00018373]
[1742306903039,0.6469822,81651.0,81650.0,0.00018373]
[1742306903646,0.6469822,81651.0,81634.0,0.266]
[1742306903647,1.0882,81651.0,81615.0,0.3608]
[1742306903950,0.3608,81622.0,81608.0,0.3608]
[1742306904249,0.3608,81614.0,81601.0,0.2525]
[1742306904451,0.265,81613.0,81612.0,0.1225408]
[1742306904751,0.265,81613.0,81605.0,0.1225513]
[1742306904943,0.1225416,81612.0,81604.0,0.00018373]
[1742306905147,0.1225513,81605.0,81604.0,0.00018373]
[1742306906155,0.3851513,81605.0,81604.0,0.00018373]
[1742306906548,0.2626,81605.0,81604.0,0.12273653]
[1742306906853,0.5153,81605.0,81604.0,0.12273653]
[1742306907352,0.8761,81605.0,81604.0,0.00018373]
[1742306907557,0.0612797,81600.0,81583.0,0.1225832]
[1742306907743,0.3608,81597.0,81583.0,0.2563]
[1742306908051,0.3608,81590.0,81582.0,0.3608]
[1742306908242,0.5153,81589.0,81586.0,0.1225792]
[1742306908442,0.5153,81589.0,81588.0,0.1225768]
[1742306908652,0.2527,81589.0,81588.0,0.1225768]
[1742306909444,0.36098385,81597.0,81596.0,0.1225648]
[1742306910343,0.36098385,81597.0,81595.0,0.2404]
[1742306910548,0.061285,81593.0,81586.0,0.1225788]
[1742306910746,0.3622713,81592.0,81589.0,0.1225749]
[1742306910949,0.6268713,81592.0,81590.0,0.3629731]
[1742306911253,0.2646,81592.0,81591.0,0.1225723]
[1742306911548,0.2646,81592.0,81591.0,0.3681723]
[1742306911750,0.1225873,81581.0,81580.0,0.00018385]
[1742306911954,0.0612928,81583.0,81580.0,0.00018385]
[1742306912156,0.4996,81582.0,81580.0,0.00018385]
[1742306912351,0.6221865,81582.0,81579.0,0.31377385]
[1742306912559,0.4996,81582.0,81581.0,0.1225873]
[1742306912751,0.4996,81582.0,81581.0,0.0735873]
[1742306913358,0.4996,81582.0,81581.0,0.0542873]
[1742306914446,0.2519,81582.0,81581.0,0.3025873]
[1742306914656,0.3608,81584.0,81564.0,0.14464]
[1742306914953,0.5289,81581.0,81580.0,0.1225888]
[1742306915158,0.5289,81581.0,81580.0,0.4833888]
[1742306915357,0.5289,81581.0,81580.0,0.1225888]
[1742306915658,0.2632,81581.0,81580.0,0.1225888]
[1742306915858,0.0612958,81579.0,81573.0,0.00018385]
[1742306916051,0.1225978,81574.0,81573.0,0.00018385]
[1742306916753,0.1225978,81574.0,81573.0,0.12278315]
[1742306916754,0.5289,81574.0,81573.0,0.12278315]
[1742306917263,0.2632,81574.0,81573.0,0.12278315]
[1742306917465,0.2632,81574.0,81573.0,0.60378315]
[1742306917666,0.14564,81581.0,81580.0,0.1225888]
[1742306917955,0.001,81581.0,81580.0,0.1225888]
[1742306918945,0.001,81581.0,81576.0,0.0612972]
[1742306919147,0.1225957,81576.0,81574.0,0.1225972]
[1742306919346,0.5039,81575.0,81574.0,0.1225972]
[1742306919752,0.2499,81575.0,81574.0,0.3643972]
[1742306919957,0.2499,81575.0,81574.0,0.6280972]
[1742306920566,0.2499,81575.0,81574.0,0.2418]
[1742306920750,0.2499,81575.0,81574.0,0.3643978]
[1742306921262,0.7332963,81575.0,81574.0,0.2418]
[1742306921458,0.90534,81575.0,81542.0,0.14464]
[1742306921656,0.3608,81556.0,81543.0,0.2584]
[1742306921960,0.122645,81543.0,81537.0,0.1226522]
[1742306922164,0.122645,81543.0,81528.0,0.37310927]
[1742306922165,0.8858,81542.0,81538.0,0.2584]
[1742306922463,1.0084463,81542.0,81538.0,0.3810506]
[1742306922662,0.519,81542.0,81540.0,0.1226475]
[1742306922858,0.519,81542.0,81541.0,0.1226475]
[1742306923357,0.519,81542.0,81541.0,0.3810475]
[1742306923557,0.52,81542.0,81541.0,0.3810475]
[1742306923758,0.52,81542.0,81539.0,0.1226494]
[1742306923959,0.52,81542.0,81541.0,0.1226475]
[1742306924467,0.2651,81542.0,81541.0,0.1226475]
[1742306924658,0.00018396,81548.0,81547.0,0.1226384]
[1742306925950,0.26478396,81548.0,81547.0,0.1226384]
[1742306926157,0.1226384,81547.0,81546.0,0.2424]
[1742306926457,0.51398396,81548.0,81547.0,0.1226384]
[1742306926863,0.51398396,81548.0,81536.0,0.2424]
[1742306927164,0.65862396,81548.0,81547.0,0.1226384]
[1742306927555,0.1226384,81547.0,81546.0,0.2427]
[1742306927968,0.0613207,81545.0,81538.0,0.1226514]
[1742306928165,0.5069,81547.0,81535.0,0.1226557]
[1742306928166,0.5069,81544.0,81535.0,0.1226557]
[1742306928467,0.1226492,81540.0,81538.0,0.122651]
[1742306928660,0.2636,81539.0,81538.0,0.122651]
[1742306929461,0.2636,81539.0,81538.0,0.365351]
[1742306929862,0.2636,81539.0,81528.0,0.0613328]
[1742306929863,0.1226595,81533.0,81532.0,0.00018396]
[1742306930062,0.1226745,81523.0,81522.0,0.257]
[1742306930260,0.14464,81528.0,81521.0,0.8908]
[1742306930465,0.2587,81522.0,81521.0,0.8908]
[1742306931253,0.2587,81522.0,81513.0,0.00018396]
[1742306931454,0.3608,81516.0,81513.0,0.00018396]
[1742306931667,0.3813866,81515.0,81513.0,0.00018396]
[1742306932072,0.1226881,81514.0,81513.0,0.00018396]
[1742306932260,0.2587,81515.0,81513.0,0.00018396]
[1742306932965,0.2587,81515.0,81513.0,0.12287346]
[1742306933267,0.2587,81515.0,81514.0,0.2557]
[1742306933571,0.2587,81515.0,81514.0,0.3783881]
[1742306933766,0.2587,81515.0,81514.0,0.2557]
[1742306933970,0.4137,81529.0,81523.0,0.0613369]
[1742306934174,0.4137,81529.0,81528.0,0.122667]
[1742306934472,0.00018396,81530.0,81529.0,0.1226655]
[1742306934677,0.00018396,81530.0,81529.0,0.3783655]
[1742306934970,0.00018396,81530.0,81529.0,0.2557]
[1742306935163,0.36098396,81530.0,81529.0,0.2557]
[1742306935486,0.00018396,81530.0,81529.0,0.3783655]
[1742306936164,0.00018396,81530.0,81529.0,0.6401655]
[1742306936359,0.39604,81545.0,81544.0,0.1226429]
[1742306936560,0.39604,81545.0,81542.0,0.1226449]
[1742306936561,0.5186825,81545.0,81542.0,0.1226449]
[1742306936770,0.39604,81545.0,81544.0,0.1226429]
[1742306937074,0.2514,81545.0,81544.0,0.1226429]
[1742306937471,0.2514,81545.0,81544.0,0.6247429]
[1742306938277,0.2514,81545.0,81544.0,0.5021]
[1742306938572,0.2514,81545.0,81537.0,0.0613266]
[1742306938573,0.1226434,81544.0,81543.0,0.1226444]
[1742306938971,0.2544,81545.0,81544.0,0.1226429]
[1742306939372,0.3026063,81565.0,81552.0,0.1226309]
[1742306939574,0.2623,81556.0,81552.0,0.1226309]
[1742306939778,0.2623,81556.0,81552.0,0.3338309]
[1742306940177,0.2623,81556.0,81552.0,0.3222309]
[1742306940563,0.2623,81556.0,81552.0,0.2612]
[1742306940770,0.1226283,81554.0,81552.0,0.2612]
[1742306940968,0.0613207,81546.0,81535.0,0.14464]
[1742306941170,0.061323,81542.0,81539.0,0.2612]
[1742306941372,0.3608,81544.0,81534.0,0.1226574]
[1742306941573,0.1226535,81537.0,81535.0,0.2612]
[1742306941778,0.1226526,81538.0,81535.0,0.3838559]
[1742306941967,0.3608,81544.0,81536.0,0.24208396]
[1742306942166,0.00018396,81553.0,81552.0,0.1226309]
[1742306942374,0.00018396,81553.0,81552.0,0.3645309]
[1742306942979,0.00018396,81553.0,81552.0,0.2419]
[1742306943378,0.00018396,81553.0,81543.0,0.326022]
[1742306943379,0.00018396,81553.0,81544.0,0.061321]
[1742306943679,0.00018396,81553.0,81552.0,0.1226309]
[1742306943885,0.36098396,81553.0,81552.0,0.1226309]
[1742306944081,0.36098396,81553.0,81544.0,0.2419]
[1742306944275,0.1226405,81546.0,81540.0,0.0613243]
[1742306944482,0.1446,81550.0,81537.0,0.2419]
[1742306944676,0.1446,81550.0,81545.0,0.122641]
[1742306944876,0.1446,81550.0,81542.0,0.1226455]
[1742306945085,0.1226381,81548.0,81543.0,0.1226436]
[1742306945285,0.1226381,81548.0,81544.0,0.2452845]
[1742306945483,0.1226381,81548.0,81544.0,0.1226419]
[1742306945677,0.1446,81550.0,81537.0,0.2419]
[1742306945880,0.4221207,81545.0,81537.0,0.2419]
[1742306946183,0.1226535,81537.0,81536.0,0.00018396]
[1742306946384,0.1446,81537.0,81520.0,0.2415]
[1742306946584,0.1226751,81523.0,81518.0,0.1226813]
[1742306946776,0.422137,81524.0,81520.0,0.1226787]
[1742306946977,0.1226769,81522.0,81519.0,0.3641804]
[1742306947274,0.3608,81524.0,81522.0,0.1226756]
[1742306947478,0.3608,81524.0,81519.0,0.2415]
[1742306947479,0.1226738,81524.0,81520.0,0.1840178]
[1742306947686,0.1446,81527.0,81523.0,0.1226745]
[1742306947687,0.2672693,81527.0,81523.0,0.1226745]
[1742306947880,0.1226707,81526.0,81523.0,0.1226745]
[1742306948084,0.2672689,81527.0,81523.0,0.1226745]
[1742306948289,0.2672689,81527.0,81524.0,0.258]
[1742306948489,0.2059344,81527.0,81524.0,0.258]
[1742306948685,0.2615,81526.0,81524.0,0.258]
[1742306948889,0.1446,81527.0,81525.0,0.0613357]
[1742306949077,0.1446,81527.0,81526.0,0.38067]
[1742306949477,0.1486,81527.0,81520.0,0.061339]
[1742306949676,0.1486,81527.0,81525.0,0.1226702]
[1742306949891,0.1486,81527.0,81526.0,0.12267]
[1742306950091,0.004,81527.0,81526.0,0.12267]
[1742306950288,0.004,81527.0,81526.0,0.63317]
[1742306951486,0.004,81527.0,81526.0,0.38067]
[1742306951676,0.2473,81528.0,81512.0,0.42232936]
[1742306951985,0.2473,81526.0,81524.0,0.1226718]
[1742306952194,0.36997,81526.0,81525.0,0.2409]
[1742306952492,0.36997,81526.0,81515.0,0.061343]
[1742306952682,0.0603372,81523.0,81519.0,0.1226802]
[1742306952885,0.2473,81522.0,81520.0,0.2409]
[1742306953084,0.1226775,81521.0,81520.0,0.2409]
[1742306953280,0.2473,81522.0,81521.0,0.1226775]
[1742306953595,0.1226801,81520.0,81515.0,0.2409]
[1742306953786,0.2473,81519.0,81516.0,0.2559]
[1742306953983,0.2473,81519.0,81512.0,0.00018396]
[1742306954187,0.4834896,81513.0,81512.0,0.00018396]
[1742306954387,0.1227076,81501.0,81500.0,0.15]
[1742306954584,0.6281076,81501.0,81500.0,0.15]
[1742306954784,0.1227227,81491.0,81490.0,0.2454]
[1742306954986,0.1446,81491.0,81470.0,0.01236707]
[1742306955295,0.2566,81490.0,81482.0,0.2454]
[1742306955498,0.1227277,81488.0,81482.0,0.2454]
[1742306955795,0.2566,81487.0,81485.0,0.2454]
[1742306955977,0.1227317,81485.0,81479.0,0.00012294]
[1742306956184,0.1227378,81481.0,81480.0,0.2454]
[1742306956379,0.0613754,81473.0,81468.0,0.89144]
[1742306956602,0.1227531,81471.0,81468.0,0.89144]
[1742306956783,0.2566,81470.0,81469.0,0.2454]
[1742306956984,0.7401543,81470.0,81468.0,0.89144]
[1742306957291,0.1227604,81466.0,81465.0,0.2627]
[1742306957492,0.0613799,81467.0,81454.0,0.1227782]
[1742306957678,0.1227694,81460.0,81450.0,0.2507]
[1742306957883,0.2365,81459.0,81450.0,0.2627]
[1742306958080,0.122776,81456.0,81450.0,0.2627]
[1742306958281,0.2059863,81458.0,81450.0,0.2627]
[1742306958585,0.1446,81458.0,81452.0,0.1227813]
[1742306958785,0.1227769,81455.0,81454.0,0.003]
[1742306958982,0.3608,81455.0,81454.0,0.003]
[1742306959182,0.3608,81455.0,81454.0,0.1257785]
[1742306959693,0.3608,81455.0,81454.0,0.1227785]
[1742306959991,0.3608,81455.0,81454.0,0.3854785]
[1742306960587,0.1456,81458.0,81457.0,0.1227739]
[1742306961194,0.1227769,81455.0,81454.0,0.2627]
[1742306961399,0.122783,81451.0,81443.0,0.2459]
[1742306961701,0.122783,81451.0,81444.0,0.2532]
[1742306961883,0.1227869,81449.0,81444.0,0.2532]
[1742306962083,0.2483,81448.0,81446.0,0.1227897]
[1742306962289,0.4913,81448.0,81445.0,0.1227917]
[1742306962485,0.3608,81446.0,81444.0,0.2532]
[1742306962685,0.4913,81445.0,81444.0,0.3759922]
[1742306963100,0.243,81445.0,81444.0,0.3759922]
[1742306963991,0.14464,81449.0,81444.0,0.3759922]
[1742306964299,0.14464,81449.0,81445.0,0.245]
[1742306964601,0.14464,81449.0,81448.0,0.1227875]
[1742306964794,0.2435,81462.0,81458.0,0.1227724]
[1742306964991,0.2435,81462.0,81445.0,0.245]
[1742306964992,0.50562408,81459.0,81449.0,0.25]
[1742306965203,0.3608,81450.0,81449.0,0.25]
[1742306965388,0.50544,81450.0,81449.0,0.25]
[1742306966392,0.50544,81450.0,81449.0,0.372786]
[1742306966996,0.42236978,81459.0,81458.0,0.1227724]
[1742306966997,0.00018408,81459.0,81458.0,0.1227724]
[1742306967599,0.14464,81475.0,81458.0,0.01236086]
[1742306967793,0.14464,81475.0,81472.0,0.1227504]
[1742306968098,0.14464,81475.0,81473.0,0.2608]
[1742306968511,0.1227483,81474.0,81473.0,0.2608]
[1742306968802,0.3608,81477.0,81473.0,0.2608]
[1742306969001,0.00018408,81482.0,81478.0,0.0613708]
[1742306969204,0.00018408,81482.0,81479.0,0.2608]
[1742306969402,0.00018408,81482.0,81481.0,0.1227378]
[1742306970098,0.4835133,81498.0,81491.0,0.1227227]
[1742306970303,0.00909825,81503.0,81491.0,0.1227227]
[1742306970496,0.14464,81505.0,81503.0,0.1227032]
[1742306970697,0.3608,81517.0,81504.0,0.2544]
[1742306970901,0.53493315,81507.0,81506.0,0.1227001]
[1742306971106,0.39029315,81507.0,81506.0,0.1227001]
[1742306971411,0.39029315,81507.0,81506.0,0.6345001]
[1742306972005,0.00018408,81515.0,81514.0,0.1226881]
[1742306972795,0.00018408,81515.0,81513.0,0.5045]
[1742306972994,0.00018408,81515.0,81514.0,0.1226881]
[1742306973406,0.00018408,81515.0,81514.0,0.3623881]
[1742306973617,0.00518408,81515.0,81514.0,0.6271881]
[1742306973907,0.28421647,81533.0,81532.0,0.122661]
[1742306974296,0.28421647,81533.0,81532.0,0.362361]
[1742306974496,0.28421647,81533.0,81532.0,0.627161]
[1742306974899,0.6064,81556.0,81532.0,0.627161]
[1742306974900,0.061317,81550.0,81539.0,0.0613245]
[1742306975197,0.1226433,81544.0,81543.0,0.1226444]
[1742306975396,0.1226429,81544.0,81543.0,0.2523]
[1742306976107,0.0613177,81549.0,81532.0,0.06233]
[1742306976314,0.0613177,81549.0,81534.0,0.2523]
[1742306976607,0.1266433,81544.0,81534.0,0.8612]
[1742306976805,0.1226454,81543.0,81538.0,0.1226511]
[1742306977007,0.004,81544.0,81534.0,0.8612]
[1742306977206,0.001,81549.0,81534.0,0.9225287]
[1742306977410,0.1226379,81548.0,81544.0,0.1226421]
[1742306977709,0.0613192,81547.0,81534.0,0.86192]
[1742306977915,0.3608,81544.0,81540.0,0.1226484]
[1742306978099,0.3608,81544.0,81541.0,0.2523]
[1742306978515,0.14556,81549.0,81547.0,0.1226379]
[1742306978701,0.24,81548.0,81541.0,0.2523]
[1742306978903,0.003,81543.0,81542.0,0.1226459]
[1742306979817,0.003,81549.0,81541.0,0.2523]
[1742306980003,0.003,81549.0,81548.0,0.1226369]
[1742306980409,0.1256369,81549.0,81547.0,0.2422]
[1742306980602,0.24,81548.0,81540.0,0.00018396]
[1742306981009,0.24,81548.0,81546.0,0.1226398]
[1742306981209,0.261,81548.0,81547.0,0.3648384]
[1742306981516,0.261,81548.0,81547.0,0.6208384]
[1742306981708,0.5209,81548.0,81547.0,0.6208384]
[1742306982335,0.00018396,81553.0,81552.0,0.1226309]
[1742306982711,0.00018396,81553.0,81550.0,0.122633]
[1742306982908,0.00018396,81553.0,81552.0,0.1226309]
[1742306983616,0.00518396,81553.0,81552.0,0.1236309]
[1742306984119,0.00518396,81553.0,81552.0,0.001]
[1742306984313,0.12781336,81553.0,81552.0,0.001]
[1742306985015,0.00518396,81553.0,81552.0,0.1236309]
[1742306985608,0.00518396,81553.0,81552.0,0.7331309]
[1742306986006,0.00518396,81553.0,81552.0,1.2384109]
[1742306986211,0.04420227,81560.0,81559.0,0.1226204]
[1742306986406,0.04383446,81560.0,81559.0,1.5248604]
[1742306986920,0.0612892,81587.0,81559.0,1.5248604]
[1742306986921,0.39029315,81590.0,81562.0,0.6130795]
[1742306987222,0.39029315,81590.0,81583.0,0.1225843]
[1742306987420,0.39029315,81590.0,81583.0,0.2670243]
[1742306987715,0.39029315,81590.0,81583.0,1.1583843]
[1742306988218,0.0612893,81587.0,81583.0,1.6714843]
[1742306988419,0.2432,81589.0,81583.0,1.6714843]
[1742306988624,0.39029315,81590.0,81583.0,1.6714843]
[1742306989008,0.39029315,81590.0,81583.0,1.8214843]
[1742306989217,0.46325769,81592.0,81591.0,0.1225723]
[1742306989416,0.46325769,81592.0,81591.0,0.6278123]
[1742306989717,0.46325769,81592.0,81591.0,0.7778123]
[1742306989718,0.40921559,81592.0,81591.0,0.7778123]
[1742306990018,0.2649,81620.0,81599.0,0.1225603]
[1742306990223,0.08452853,81600.0,81599.0,0.6278003]
[1742306990420,0.08452853,81600.0,81599.0,0.7778003]
[1742306991020,0.03986263,81600.0,81599.0,0.7778003]
[1742306991217,0.00018384,81608.0,81607.0,0.1225483]
[1742306991514,0.00018384,81608.0,81607.0,1.5189083]
[1742306991918,0.00018384,81608.0,81607.0,1.25196]
[1742306992120,0.12273064,81608.0,81607.0,1.03556]
[1742306992324,0.12273064,81608.0,81607.0,1.1581083]
[1742306992822,0.12273064,81608.0,81607.0,1.1591083]
[1742306993237,0.00018384,81608.0,81607.0,1.0147083]
[1742306993526,0.00118384,81608.0,81607.0,1.0137083]
[1742306993719,0.12373064,81608.0,81607.0,0.89116]
[1742306994115,0.00118384,81608.0,81607.0,1.0137083]
[1742306994325,0.61783064,81608.0,81607.0,1.0137083]
[1742306994524,0.49528384,81608.0,81607.0,1.0137083]
[1742306995023,0.97863064,81608.0,81607.0,0.89116]
[1742306995224,0.85608384,81608.0,81607.0,0.89116]
[1742306995425,0.61783064,81608.0,81607.0,0.89116]
[1742306995616,0.49528384,81608.0,81607.0,0.89116]
[1742306996122,0.49428384,81608.0,81607.0,0.89116]
[1742306996327,0.49528384,81608.0,81607.0,1.0137083]
[1742306996526,0.49528384,81608.0,81607.0,0.89116]
[1742306996822,0.49528384,81608.0,81607.0,1.0137083]
[1742306997825,0.49528384,81608.0,81607.0,0.89116]
[1742306998325,0.49528384,81608.0,81607.0,1.0137083]
[1742306998724,0.49428384,81608.0,81607.0,1.0137083]
[1742306998924,0.49628384,81608.0,81607.0,0.89116]
[1742306999229,0.49628384,81608.0,81607.0,1.0137083]
[1742307000623,0.25288384,81608.0,81607.0,1.6245083]
[1742307001031,0.25288384,81608.0,81607.0,1.7015083]
[1742307001527,0.25088384,81608.0,81607.0,1.7015083]
[1742307001717,0.25188384,81608.0,81607.0,1.7015083]
[1742307002026,0.25188384,81608.0,81607.0,1.5187883]
[1742307002432,0.25188384,81608.0,81607.0,1.3745083]
[1742307002637,0.37443064,81608.0,81607.0,1.25196]
[1742307002929,0.25188384,81608.0,81607.0,1.3745083]
[1742307003435,0.37443064,81608.0,81607.0,0.89116]
[1742307003822,0.1225588,81600.0,81597.0,0.01232704]
[1742307004229,0.3806588,81600.0,81597.0,0.01232704]
[1742307004436,0.3806588,81600.0,81591.0,0.89064]
[1742307004729,0.3806588,81600.0,81599.0,0.00018384]
[1742307005115,0.2581,81600.0,81599.0,0.00118384]
[1742307005335,0.2581,81600.0,81599.0,0.12374414]
[1742307006526,0.2601,81600.0,81599.0,0.12274414]
[1742307007130,0.3826588,81600.0,81599.0,0.00018384]
[1742307007631,0.6324588,81600.0,81599.0,0.00018384]
[1742307008223,0.5079,81600.0,81599.0,0.00018384]
[1742307008422,0.5079,81600.0,81599.0,0.12274414]
[1742307008622,0.6304588,81600.0,81599.0,0.00018384]
[1742307009232,0.6324588,81600.0,81599.0,0.00018384]
[1742307009632,0.5099,81600.0,81599.0,0.00018384]
[1742307009832,0.6304588,81600.0,81599.0,0.00018384]
[1742307010027,0.1225783,81587.0,81586.0,0.3608]
[1742307010237,0.1225819,81585.0,81579.0,0.1225897]
[1742307010544,0.2622,81584.0,81580.0,0.1225878]
[1742307010726,0.2622,81584.0,81583.0,0.1225843]
[1742307012224,0.2622,81584.0,81582.0,0.1225852]
[1742307012428,0.2642,81584.0,81583.0,0.1225843]
[1742307012627,0.2642,81584.0,81581.0,0.1225861]
[1742307012830,0.2642,81584.0,81583.0,0.1225843]
[1742307014531,0.2642,81584.0,81577.0,0.3608]
[1742307014532,0.0612921,81583.0,81577.0,0.3608]
[1742307014732,0.4919,81582.0,81581.0,0.1225873]